bitfinex-derivatives/quotes_ETHF0:USTF0_20230403
["timestamp","ask_amount","ask_price","bid_price","bid_amount"]
[1680519109327,0.57865591,1809.3,1809.1,6.34172243]
[1680519109328,1.40465591,1809.3,1809.1,6.34172243]
[1680519109524,1.40465591,1809.3,1809.2,1.84395038]
[1680519109724,1.40465591,1809.3,1809.2,2.84395038]
[1680519110229,0.826,1809.3,1809.2,2.84395038]
[1680519110727,1.40465591,1809.3,1809.2,2.84395038]
[1680519111130,0.826,1809.3,1809.2,2.84395038]
[1680519111323,1.40465591,1809.3,1809.2,2.84399031]
[1680519112024,0.826,1809.3,1809.2,2.84399031]
[1680519112324,1.40465591,1809.3,1809.2,2.84399031]
[1680519113323,1.40465591,1809.3,1809.2,1.68545739]
[1680519114123,1.40465591,1809.3,1809.2,0.68545739]
[1680519114329,1.40465591,1809.3,1809.2,1.84393621]
[1680519114831,1.40465591,1809.3,1809.2,2.84393621]
[1680519116331,1.40465591,1809.3,1809.2,1.68545739]
[1680519116827,1.40465591,1809.3,1809.2,0.68545739]
[1680519117730,1.40465591,1809.3,1809.2,1.68545739]
[1680519118625,1.44751075,1809.4,1809.2,3.96192243]
[1680519118833,1.44751075,1809.5,1809.3,7.16872243]
[1680519119033,1.44751075,1809.5,1809.4,2.15851788]
[1680519119231,0.86885484,1809.5,1809.4,2.15851788]
[1680519119427,0.57970874,1809.5,1809.4,2.15851788]
[1680519119630,0.57970874,1809.5,1809.4,2.84389434]
[1680519120931,0.57970874,1809.5,1809.4,2.15851788]
[1680519122734,0.57970874,1809.5,1809.4,2.84389006]
[1680519123029,0.57970874,1809.5,1809.4,2.15851788]
[1680519124535,2.27056358,1809.6,1809.4,2.15851788]
[1680519124735,1.69085484,1809.6,1809.5,4.07611709]
[1680519125135,2.27019563,1809.6,1809.5,4.07611709]
[1680519125729,1.69085484,1809.6,1809.5,4.07611709]
[1680519125936,2.27019598,1809.6,1809.5,4.07611709]
[1680519126338,1.40134114,1809.6,1809.5,4.07611709]
[1680519129138,1.44819598,1809.7,1809.5,4.89911709]
[1680519129334,0.57934114,1809.7,1809.6,1.86782148]
[1680519130635,2.27619598,1809.8,1809.6,1.86782148]
[1680519130837,1.40734114,1809.8,1809.7,3.2078]
[1680519131635,2.27619598,1809.8,1809.7,3.2078]
[1680519131834,1.40734114,1809.8,1809.7,3.2078]
[1680519134235,1.66972907,1809.8,1809.7,3.2078]
[1680519138238,1.66972907,1809.8,1809.7,3.20271003]
[1680519142043,1.66772907,1809.8,1809.7,3.20271003]
[1680519144042,2.66772907,1809.8,1809.7,3.20271003]
[1680519144245,2.95724277,1809.8,1809.5,4.07562148]
[1680519144444,0.828,1809.7,1809.5,4.07562148]
[1680519146151,1.40664695,1809.7,1809.5,4.07562148]
[1680519149350,0.26495314,1809.6,1809.5,4.07562148]
[1680519152145,1.09295314,1809.6,1809.5,4.07562148]
[1680519155650,2.49860009,1809.6,1809.5,3.2078]
[1680519155847,3.49860009,1809.6,1809.5,3.2078]
[1680519156051,3.78880798,1809.6,1809.5,3.2078]
[1680519162459,2.78880798,1809.6,1809.5,3.2078]
[1680519163462,2.78680798,1809.6,1809.5,3.2078]
[1680519164254,2.9163643,1809.6,1809.5,3.2078]
[1680519167962,2.9163643,1809.6,1809.4,0.86782148]
[1680519168165,1.40539941,1809.5,1809.4,0.86782148]
[1680519172258,2.27425425,1809.5,1809.4,0.86782148]
[1680519172460,1.40539941,1809.5,1809.4,0.86782148]
[1680519174567,2.27425425,1809.5,1809.4,0.86782148]
[1680519174755,1.40539941,1809.5,1809.4,0.86782148]
[1680519175067,2.27425425,1809.5,1809.4,0.86782148]
[1680519175367,1.40539941,1809.5,1809.4,0.86782148]
[1680519175868,2.27425425,1809.5,1809.4,0.86782148]
[1680519176067,1.40539941,1809.5,1809.4,0.86782148]
[1680519176963,2.27425425,1809.5,1809.4,0.86782148]
[1680519179270,2.66866197,1809.5,1809.4,0.86782148]
[1680519182574,2.08926256,1809.5,1809.4,0.86782148]
[1680519186378,2.66860424,1809.5,1809.4,0.86782148]
[1680519186578,2.08926256,1809.5,1809.4,0.86782148]
[1680519198580,2.08926256,1809.5,1809.3,4.36631788]
[1680519198881,1.40787583,1809.4,1809.3,4.36631788]
[1680519199085,1.40787583,1809.4,1809.3,5.05173732]
[1680519199285,1.80214783,1809.4,1809.3,5.05173732]
[1680519200681,2.09112684,1809.4,1809.3,5.34168448]
[1680519200990,2.67119302,1809.4,1809.3,5.34168448]
[1680519201288,2.67119361,1809.4,1809.3,5.34168448]
[1680519202580,2.09112684,1809.4,1809.3,5.34168448]
[1680519204179,2.67120457,1809.4,1809.3,5.34168448]
[1680519204382,2.09112684,1809.4,1809.3,5.34168448]
[1680519206192,2.08698141,1809.4,1809.3,5.34168448]
[1680519215689,2.91198141,1809.4,1809.3,1.84535957]
[1680519215888,2.91198141,1809.4,1809.3,5.05315957]
[1680519216083,3.91198141,1809.4,1809.3,5.05315957]
[1680519219992,3.91198141,1809.4,1809.3,4.36774013]
[1680519220599,2.91198141,1809.4,1809.3,4.36774013]
[1680519220789,2.91198141,1809.4,1809.3,5.05318467]
[1680519221586,2.91198141,1809.4,1809.3,4.36774013]
[1680519221994,2.91316414,1809.4,1809.3,4.36774013]
[1680519223100,3.91316414,1809.4,1809.3,4.36774013]
[1680519223290,4.13223361,1809.4,1809.3,4.36774013]
[1680519225492,3.26219604,1809.4,1809.3,3.2078]
[1680519225800,4.41972567,1809.4,1809.3,4.07758735]
[1680519225995,4.41972567,1809.4,1809.3,0.86978735]
[1680519226800,4.41972567,1809.4,1809.3,1.44961882]
[1680519227401,4.96124078,1809.4,1809.3,1.44961882]
[1680519228201,4.96124078,1809.4,1809.3,0.57983147]
[1680519230696,5.78724078,1809.4,1809.3,0.57983147]
[1680519231197,5.78724078,1809.4,1809.2,1.44961882]
[1680519231400,3.80452963,1809.3,1809.2,1.44961882]
[1680519231599,3.80452963,1809.3,1809.2,0.57983147]
[1680519232003,4.41404552,1809.3,1809.2,0.57983147]
[1680519232205,4.41404552,1809.3,1809.1,3.78763147]
[1680519232502,3.52222651,1809.2,1809.1,3.78763147]
[1680519233902,3.52222651,1809.2,1809.1,0.57983147]
[1680519233903,2.653,1809.2,1809.1,0.57983147]
[1680519234105,3.52192592,1809.2,1809.0,1.54961882]
[1680519234296,1.40426912,1809.1,1809.0,1.54961882]
[1680519234497,1.40426912,1809.1,1809.0,0.67983147]
[1680519234998,2.27319504,1809.1,1809.0,0.67983147]
[1680519235205,1.69392592,1809.1,1809.0,0.67983147]
[1680519235400,2.27317747,1809.1,1809.0,0.67983147]
[1680519235603,1.69392592,1809.1,1809.0,0.67983147]
[1680519236000,2.27315658,1809.1,1809.0,0.67983147]
[1680519236204,1.40423066,1809.1,1809.0,0.67983147]
[1680519238301,1.40423066,1809.1,1809.0,0.1]
[1680519239107,2.01370089,1809.1,1809.0,0.1]
[1680519240403,2.84170089,1809.1,1809.0,0.1]
[1680519241006,1.0,1809.0,1808.9,3.78763147]
[1680519241209,2.23270805,1809.0,1808.9,3.2078]
[1680519241505,2.23270805,1809.0,1808.8,0.57983147]
[1680519241709,1.652,1808.9,1808.8,0.57983147]
[1680519252218,1.652,1808.9,1808.7,4.65741882]
[1680519252416,0.826,1808.8,1808.7,4.65741882]
[1680519252617,0.826,1808.8,1808.7,4.07758735]
[1680519252820,0.826,1808.8,1808.7,4.65591712]
[1680519253921,1.652,1808.8,1808.7,3.78612977]
[1680519254122,1.652,1808.8,1808.5,0.86978735]
[1680519254123,3.24310059,1808.8,1808.5,0.86978735]
[1680519254315,1.651,1808.6,1808.5,0.57840421]
[1680519254623,2.651,1808.6,1808.5,0.57840421]
[1680519255426,2.651,1808.6,1808.4,0.57840421]
[1680519255722,0.825,1808.5,1808.4,0.57840421]
[1680519256124,0.828,1808.4,1808.3,4.65599156]
[1680519256429,1.66046208,1808.4,1808.3,4.65599156]
[1680519256920,1.66046208,1808.4,1808.3,4.07758735]
[1680519257129,1.66046208,1808.4,1808.3,3.78584769]
[1680519260532,1.66046208,1808.4,1808.3,3.2078]
[1680519262124,0.83246208,1808.4,1808.3,3.2078]
[1680519268126,2.47946208,1808.4,1808.1,4.65563504]
[1680519268329,1.653,1808.2,1808.1,3.78584769]
[1680519269234,2.31493649,1808.2,1808.1,3.2078]
[1680519269731,2.31493649,1808.2,1808.0,0.15]
[1680519269930,0.825,1808.1,1808.0,0.15]
[1680519273936,3.476,1808.1,1808.0,0.15]
[1680519275734,2.651,1808.1,1807.7,3.78584769]
[1680519275934,0.826,1807.8,1807.7,3.78584769]
[1680519281335,0.826,1807.8,1807.7,3.2078]
[1680519284237,1.70725328,1807.8,1807.7,3.2078]
[1680519293756,2.53325328,1807.8,1807.7,3.2078]
[1680519295265,1.70725328,1807.8,1807.7,3.2078]
[1680519300456,0.822,1807.7,1807.5,3.2078]
[1680519300658,0.828,1807.5,1807.3,3.78584769]
[1680519300858,1.651,1807.4,1807.3,3.78584769]
[1680519302363,1.651,1807.4,1807.1,3.78584769]
[1680519302564,1.653,1807.2,1807.1,3.78584769]
[1680519304761,1.828,1807.5,1807.1,4.07758735]
[1680519304762,0.828,1807.5,1807.1,4.07758735]
[1680519304954,0.828,1807.5,1807.3,3.2078]
[1680519305164,0.827,1807.4,1807.3,3.2078]
[1680519305359,0.827,1807.4,1807.1,3.78626347]
[1680519305559,0.828,1807.3,1807.1,0.57846347]
[1680519305762,0.828,1807.3,1807.2,3.2078]
[1680519306065,0.828,1807.3,1807.2,3.78626347]
[1680519306266,1.79289793,1807.3,1807.2,3.2078]
[1680519306469,1.79289793,1807.3,1807.2,3.78626347]
[1680519307166,2.06089793,1807.3,1807.2,3.78626347]
[1680519307366,2.06089793,1807.3,1807.2,3.2078]
[1680519307668,2.06089793,1807.3,1807.2,3.78626347]
[1680519308162,0.96489793,1807.3,1807.2,5.07758735]
[1680519308362,1.106,1807.6,1807.3,1.0]
[1680519308565,1.106,1807.6,1807.4,3.2078]
[1680519308765,0.96400012,1807.5,1807.4,3.2078]
[1680519309065,3.06000012,1807.5,1807.4,3.2078]
[1680519309271,0.96400012,1807.5,1807.4,3.2078]
[1680519309565,0.57870805,1807.8,1807.4,3.2078]
[1680519309566,0.57870805,1808.1,1807.5,5.67644914]
[1680519309759,0.57870805,1808.2,1808.0,3.2078]
[1680519309963,1.67870805,1808.2,1808.0,3.2078]
[1680519310269,1.096,1808.1,1807.6,3.78572666]
[1680519310566,1.106,1808.0,1807.8,3.2078]
[1680519312062,1.1,1808.0,1807.8,3.2078]
[1680519313272,1.1,1808.0,1807.8,3.78572666]
[1680519313463,1.1,1808.0,1807.8,3.2078]
[1680519313768,1.1,1808.0,1807.8,3.78572666]
[1680519314064,0.57870805,1808.1,1807.8,3.2078]
[1680519314271,1.68470805,1808.2,1808.0,3.2078]
[1680519314470,2.55363397,1808.2,1808.0,3.2078]
[1680519314769,1.68470805,1808.2,1808.0,3.2078]
[1680519315171,0.57870805,1808.1,1808.0,3.2078]
[1680519315374,1.57870805,1808.1,1808.0,3.2078]
[1680519315566,0.57870805,1808.1,1808.0,3.2078]
[1680519316966,0.92915857,1808.1,1808.0,3.2078]
[1680519317572,0.35045052,1808.1,1808.0,3.2078]
[1680519319776,0.35045052,1808.1,1808.0,3.78572666]
[1680519321276,0.35045052,1808.1,1808.0,3.2078]
[1680519322374,0.35045052,1808.1,1808.0,3.78572666]
[1680519323174,0.35045052,1808.1,1808.0,3.2078]
[1680519334674,0.35045052,1808.1,1807.8,1.96788999]
[1680519334675,1.45645052,1808.1,1807.8,4.65261665]
[1680519334983,1.45645052,1808.1,1807.9,0.57792666]
[1680519335177,1.45645052,1808.1,1807.8,4.65261665]
[1680519335379,1.45645052,1808.1,1808.0,3.2078]
[1680519341986,0.35045052,1808.1,1808.0,3.2078]
[1680519342189,1.105,1808.2,1808.0,3.2078]
[1680519342581,0.35030994,1808.1,1808.0,3.2078]
[1680519344194,1.57870805,1808.3,1808.0,3.2078]
[1680519344386,0.57870805,1808.3,1808.2,3.2078]
[1680519344587,1.57870805,1808.3,1808.2,3.2078]
[1680519345381,3.55363397,1808.3,1808.2,3.2078]
[1680519345688,3.86367203,1808.3,1808.2,3.2078]
[1680519347789,2.99474611,1808.3,1808.2,3.2078]
[1680519351204,3.28626423,1808.3,1808.2,3.2078]
[1680519353204,2.41733831,1808.3,1808.2,3.2078]
[1680519354500,3.57486794,1808.3,1808.2,3.2078]
[1680519355502,2.41733831,1808.3,1808.2,3.2078]
[1680519355703,3.86650237,1808.3,1808.2,3.2078]
[1680519357299,3.86650237,1808.3,1808.2,0.57792666]
[1680519357501,3.86650237,1808.3,1808.1,0.86688999]
[1680519357502,3.86650237,1808.3,1808.1,0.57792666]
[1680519357701,2.25414549,1808.2,1808.1,0.57792666]
[1680519358008,3.25414549,1808.2,1808.1,0.57792666]
[1680519358607,3.25414549,1808.2,1808.1,1.44481665]
[1680519359209,3.25414549,1808.2,1808.1,0.86688999]
[1680519359606,2.25414549,1808.2,1808.1,0.86688999]
[1680519360609,2.56540124,1808.2,1808.1,0.86688999]
[1680519367721,5.524,1807.9,1807.6,0.58066075]
[1680519367916,5.4188,1807.7,1807.5,0.04070692]
[1680519368117,3.64672137,1807.6,1807.5,0.04070692]
[1680519368424,3.64672137,1807.6,1807.1,4.2078]
[1680519368425,1.96980347,1807.6,1807.3,3.2078]
[1680519368617,0.57786924,1807.6,1807.3,4.3088]
[1680519368812,0.57786924,1807.6,1807.5,3.2078]
[1680519370427,0.57786924,1807.7,1807.5,3.2078]
[1680519372023,1.68286924,1807.7,1807.5,3.2078]
[1680519372221,0.827,1807.6,1807.5,3.2078]
[1680519374015,0.828,1807.6,1807.5,3.2078]
[1680519374212,1.658,1807.6,1807.5,3.2078]
[1680519374620,1.658,1807.6,1807.3,3.2078]
[1680519374926,0.823,1807.4,1807.3,3.2078]
[1680519375525,1.30724921,1807.4,1807.3,3.2078]
[1680519377528,5.524,1807.2,1806.6,1.73804253]
[1680519377827,3.207,1807.3,1806.1,6.881641]
[1680519377828,4.8588,1806.7,1806.1,3.2078]
[1680519378035,0.823,1806.5,1806.2,0.6864562]
[1680519378424,0.823,1806.5,1806.1,9.1661]
[1680519378626,0.823,1806.5,1806.1,4.0368]
[1680519378825,4.0308,1806.5,1806.2,1.0]
[1680519379427,4.0308,1806.5,1806.1,0.829]
[1680519379731,3.2078,1806.3,1806.1,0.829]
[1680519380417,0.85948654,1806.2,1806.1,0.829]
[1680519380621,0.70692671,1806.2,1806.1,0.829]
[1680519380824,0.823,1806.5,1806.1,0.829]
[1680519381024,0.84041439,1806.2,1806.1,4.0368]
[1680519381231,1.823,1806.5,1806.1,4.0368]
[1680519381422,0.84041249,1806.4,1806.1,4.0368]
[1680519381828,0.84041249,1806.4,1806.2,1.0]
[1680519382026,1.66741249,1806.4,1806.2,1.0]
[1680519382228,1.94741249,1806.4,1806.1,4.2078]
[1680519382530,1.94741249,1806.4,1806.1,3.2078]
[1680519388028,1.94541249,1806.4,1806.1,3.2078]
[1680519389536,0.84041249,1806.4,1806.1,4.3148]
[1680519389738,4.3148,1806.6,1806.1,4.3148]
[1680519390133,0.83161145,1806.5,1806.1,4.3148]
[1680519391235,1.105,1806.3,1806.0,0.15]
[1680519393331,1.105,1806.3,1806.0,1.15]
[1680519393534,1.105,1806.3,1806.0,0.15]
[1680519394243,1.105,1806.3,1806.0,1.15]
[1680519394430,1.105,1806.3,1806.0,0.15]
[1680519394633,1.105,1806.3,1806.0,1.15]
[1680519395543,1.105,1806.3,1806.0,0.15]
[1680519395745,1.105,1806.3,1805.8,2.61249093]
[1680519395933,1.105,1806.3,1805.9,1.098]
[1680519396136,1.105,1806.3,1806.0,1.0]
[1680519396634,1.105,1806.3,1805.9,2.098]
[1680519397935,1.105,1806.3,1805.9,1.098]
[1680519398142,1.105,1806.3,1806.0,1.0]
[1680519399434,1.105,1806.3,1805.9,7.622]
[1680519401936,1.105,1806.3,1805.9,1.098]
[1680519403154,1.107,1806.1,1805.8,3.2078]
[1680519404049,1.107,1806.1,1805.9,1.0]
[1680519404238,1.107,1806.1,1805.8,8.7318]
[1680519404442,1.107,1806.1,1805.8,9.7318]
[1680519404646,1.107,1806.1,1805.8,8.7318]
[1680519406050,1.107,1806.1,1805.8,3.2078]
[1680519407850,0.81916283,1806.0,1805.7,2.25473748]
[1680519408153,1.0,1806.0,1805.7,1.105]
[1680519408651,2.107,1806.1,1805.7,1.105]
[1680519408956,1.107,1806.1,1805.7,1.105]
[1680519409248,0.8597433,1806.0,1805.6,1.68954111]
[1680519409455,1.105,1805.8,1805.5,1.0]
[1680519409751,1.107,1805.9,1805.5,0.5642469]
[1680519409951,1.107,1805.9,1805.6,1.0]
[1680519410144,1.107,1805.9,1805.6,4.2078]
[1680519410653,0.95441664,1805.9,1805.6,4.2078]
[1680519410852,0.95441664,1805.9,1805.6,3.2078]
[1680519412246,0.95441664,1805.9,1805.6,4.35753748]
[1680519412656,4.16221664,1805.9,1805.6,4.35753748]
[1680519413350,1.0,1805.8,1805.6,1.14973748]
[1680519413653,1.0,1805.8,1805.5,2.25673748]
[1680519413846,4.16221664,1805.9,1805.5,2.25673748]
[1680519414245,1.95799577,1805.8,1805.5,2.25673748]
[1680519414550,1.95799577,1805.8,1805.5,1.107]
[1680519414551,1.0,1805.7,1805.5,1.107]
[1680519414745,1.0,1805.8,1805.5,2.25673748]
[1680519416554,1.0,1805.8,1805.6,1.14973748]
[1680519416855,4.16221664,1805.9,1805.6,1.14973748]
[1680519417059,1.0,1805.8,1805.6,1.14973748]
[1680519417353,1.0,1805.8,1805.5,2.25673748]
[1680519417563,1.107,1805.7,1805.5,1.14973748]
[1680519417759,1.0,1805.6,1805.5,1.14973748]
[1680519418654,4.3148,1805.7,1805.5,1.14973748]
[1680519419046,1.0,1805.6,1805.5,1.14973748]
[1680519419459,4.3148,1805.7,1805.5,1.14973748]
[1680519420161,1.099,1805.6,1805.3,1.14973748]
[1680519420365,1.107,1805.5,1805.4,1.14973748]
[1680519420553,2.1805296,1805.5,1805.4,1.83651333]
[1680519420752,5.3883296,1805.5,1805.4,1.83651333]
[1680519420949,5.3883296,1805.5,1805.4,1.14973748]
[1680519421565,5.3883296,1805.5,1805.4,1.83651333]
[1680519421765,5.3883296,1805.5,1805.4,1.14973748]
[1680519422063,4.2813296,1805.5,1805.4,1.14973748]
[1680519422264,4.2813296,1805.5,1805.4,0.68677585]
[1680519422459,4.2813296,1805.5,1805.2,2.41143332]
[1680519422660,4.2813296,1805.5,1805.3,0.68677585]
[1680519422857,4.2813296,1805.5,1805.4,0.68677585]
[1680519423164,4.2813296,1805.5,1805.4,1.44783031]
[1680519423663,4.2813296,1805.5,1805.4,0.68677585]
[1680519423967,4.2813296,1805.5,1805.4,1.44783031]
[1680519424661,4.2813296,1805.5,1805.4,2.13460616]
[1680519424961,4.2813296,1805.5,1805.4,1.44783031]
[1680519425564,4.2813296,1805.5,1805.4,0.68677585]
[1680519425764,4.2813296,1805.5,1805.4,1.44783031]
[1680519425965,4.2813296,1805.5,1805.4,0.68677585]
[1680519426162,4.2813296,1805.5,1805.3,2.13460616]
[1680519426364,4.2813296,1805.5,1805.4,0.68677585]
[1680519426561,4.2813296,1805.5,1805.3,1.44783031]
[1680519426763,4.2813296,1805.5,1805.3,2.13460616]
[1680519427266,4.2813296,1805.5,1805.4,0.68677585]
[1680519427267,5.3813296,1805.5,1805.4,0.68677585]
[1680519427467,5.3813296,1805.5,1805.4,1.15733159]
[1680519432963,4.3148,1805.9,1805.4,8.76460616]
[1680519433267,1.107,1805.9,1805.7,1.0]
[1680519433454,1.107,1805.9,1805.7,1.86756031]
[1680519434167,1.107,1805.9,1805.7,0.86756031]
[1680519435563,0.74918423,1805.8,1805.7,0.86756031]
[1680519437267,0.74918423,1805.8,1805.7,0.86767176]
[1680519437468,0.74918423,1805.8,1805.6,2.15674708]
[1680519438368,0.74918423,1805.8,1805.7,1.15674708]
[1680519439672,0.74918423,1805.8,1805.7,4.36454708]
[1680519440565,0.5965924,1805.8,1805.7,4.36454708]
[1680519441265,0.5965924,1805.8,1805.7,1.15674708]
[1680519441466,0.5965924,1805.8,1805.7,6.15620863]
[1680519441668,0.5965924,1805.8,1805.7,5.46954708]
[1680519441970,5.3148,1806.1,1805.7,2.26174708]
[1680519442166,0.73008794,1805.8,1805.7,1.15674708]
[1680519442468,1.0,1805.9,1805.7,1.15674708]
[1680519442672,3.2078,1805.9,1805.8,0.86823398]
[1680519444768,1.1,1806.0,1805.8,0.86823398]
[1680519444969,1.0,1805.9,1805.8,0.86823398]
[1680519446177,1.1,1806.0,1805.8,0.86823398]
[1680519446378,1.1,1806.0,1805.9,0.86823398]
[1680519446778,2.207,1806.0,1805.8,0.86823398]
[1680519446978,5.3148,1805.9,1805.8,0.86823398]
[1680519448584,6.04486618,1805.9,1805.8,0.86823398]
[1680519450376,6.04486618,1805.9,1805.7,0.86823398]
[1680519450677,2.105,1805.8,1805.7,0.86823398]
[1680519457681,1.0,1805.7,1805.5,1.84354997]
[1680519457879,4.3148,1805.6,1805.5,1.15674708]
[1680519460087,5.4218,1805.6,1805.5,1.15674708]
[1680519462082,4.85601334,1805.6,1805.5,1.15674708]
[1680519462284,4.3148,1805.6,1805.5,1.15674708]
[1680519464082,4.3148,1805.6,1805.5,0.87014592]
[1680519464284,5.4218,1805.6,1805.5,0.87014592]
[1680519464481,6.4218,1805.6,1805.5,0.87014592]
[1680519465483,6.4218,1805.6,1805.4,0.87014592]
[1680519465684,3.203,1805.5,1805.4,0.87014592]
[1680519465883,3.203,1805.5,1805.3,1.15674708]
[1680519466092,5.3148,1805.4,1805.3,1.15674708]
[1680519466292,5.3148,1805.4,1805.3,1.84361525]
[1680519466490,5.3148,1805.4,1805.3,1.15674708]
[1680519466881,4.3148,1805.4,1805.3,1.15674708]
[1680519467294,1.101,1805.3,1805.1,1.44783031]
[1680519467490,2.107,1805.2,1805.1,1.44783031]
[1680519467686,2.107,1805.2,1805.1,2.13473156]
[1680519467885,1.107,1805.2,1805.1,2.13473156]
[1680519468086,1.107,1805.2,1805.1,0.68690125]
[1680519468385,1.107,1805.2,1805.1,2.13473156]
[1680519468588,1.107,1805.2,1805.1,0.68690125]
[1680519468794,1.107,1805.2,1805.1,2.13473156]
[1680519469487,1.107,1805.2,1805.1,1.84619359]
[1680519469685,1.107,1805.2,1805.1,1.84619335]
[1680519469894,1.107,1805.2,1805.1,0.68690125]
[1680519470087,1.107,1805.2,1805.1,1.84619094]
[1680519470393,1.107,1805.2,1805.1,0.68690125]
[1680519470693,0.95435239,1805.2,1805.1,0.68690125]
[1680519471395,0.95435239,1805.2,1805.1,1.84586016]
[1680519471987,0.95435239,1805.2,1805.1,1.15895891]
[1680519472292,0.831,1805.2,1805.1,1.15895891]
[1680519472496,1.831,1805.2,1805.1,1.15895891]
[1680519472792,0.831,1805.2,1805.1,1.15895891]
[1680519474997,0.831,1805.2,1805.0,1.25895891]
[1680519475196,0.831,1805.1,1805.0,0.1]
[1680519475396,0.831,1805.1,1805.0,1.94546826]
[1680519475697,4.0388,1805.1,1805.0,1.94546826]
[1680519475887,0.831,1805.1,1805.0,1.94546826]
[1680519476087,0.831,1805.1,1805.0,0.78692434]
[1680519476685,0.831,1805.1,1805.0,1.25832082]
[1680519476888,0.831,1805.1,1805.0,0.78692434]
[1680519477699,0.831,1805.1,1805.0,1.25819478]
[1680519477899,0.831,1805.1,1805.0,0.68692434]
[1680519478100,0.831,1805.1,1805.0,1.68692434]
[1680519479010,0.831,1805.1,1805.0,0.68692434]
[1680519479800,0.831,1805.1,1805.0,1.0]
[1680519480001,0.831,1805.1,1805.0,1.68692434]
[1680519480796,1.55690721,1805.1,1805.0,1.68692434]
[1680519481099,0.831,1805.1,1805.0,0.68692434]
[1680519481293,0.831,1805.1,1804.9,2.13475465]
[1680519481695,0.831,1805.4,1805.0,7.355]
[1680519481895,0.831,1805.4,1805.2,0.86848498]
[1680519482096,0.831,1805.4,1805.1,0.68688508]
[1680519482097,0.72590262,1805.3,1805.1,0.68688508]
[1680519482393,0.831,1805.4,1805.0,8.80283031]
[1680519482597,0.831,1805.4,1805.3,0.86845393]
[1680519483306,0.831,1805.4,1805.2,0.86845393]
[1680519484306,0.831,1805.4,1805.3,0.86845393]
[1680519484708,0.831,1805.4,1805.2,0.86845393]
[1680519484894,3.2078,1805.3,1805.2,0.86845393]
[1680519485500,0.831,1805.4,1805.2,0.86845393]
[1680519485707,0.831,1805.4,1805.3,0.86845393]
[1680519486503,0.83,1805.4,1805.3,0.86845393]
[1680519486907,1.658,1805.4,1805.3,0.86845393]
[1680519487108,1.0,1805.3,1805.1,0.8687787]
[1680519487312,4.0388,1805.2,1804.9,2.1347654]
[1680519487503,4.0388,1805.2,1805.0,0.68693415]
[1680519487504,3.2078,1805.2,1805.0,0.68693415]
[1680519487704,0.825,1805.1,1804.9,1.44783031]
[1680519487911,0.825,1805.1,1805.0,2.1347632]
[1680519488099,0.825,1805.1,1805.0,1.44783031]
[1680519488505,1.55088327,1805.1,1805.0,0.68693289]
[1680519488701,1.55088327,1805.1,1804.9,2.1347632]
[1680519489014,0.825,1805.1,1805.0,0.68693289]
[1680519489406,1.55088029,1805.1,1805.0,1.44783031]
[1680519493419,1.55088029,1805.1,1805.0,0.68693289]
[1680519493809,1.55088029,1805.1,1805.0,1.44783031]
[1680519495915,2.37988029,1805.1,1805.0,1.44783031]
[1680519496117,2.37988029,1805.1,1805.0,2.1347632]
[1680519496315,2.37988029,1805.1,1805.0,1.44783031]
[1680519497819,2.37988029,1805.1,1805.0,2.1347632]
[1680519498019,2.37988029,1805.1,1805.0,1.44783031]
[1680519500721,2.37988029,1805.1,1805.0,2.1347632]
[1680519500925,2.37988029,1805.1,1805.0,1.44783031]
[1680519503618,3.21088029,1805.1,1805.0,2.1347632]
[1680519503815,3.21088029,1805.1,1804.9,1.44783031]
[1680519504013,4.8668,1805.0,1804.9,1.44783031]
[1680519504220,5.65496741,1805.0,1804.9,1.44783031]
[1680519506014,5.65496741,1805.0,1804.9,0.68702108]
[1680519506220,5.65496741,1805.0,1804.8,1.44783031]
[1680519506417,3.99596741,1805.0,1804.8,1.44783031]
[1680519506815,0.831,1804.9,1804.8,1.44783031]
[1680519507020,0.67833077,1804.9,1804.8,1.44783031]
[1680519507213,0.67833077,1804.9,1804.8,2.13485139]
[1680519507416,0.67833077,1804.9,1804.8,0.68702108]
[1680519508022,0.67833077,1804.9,1804.7,0.68702108]
[1680519508220,0.67833077,1804.9,1804.8,0.68702108]
[1680519508426,0.67833077,1804.9,1804.7,0.68702108]
[1680519509524,0.67833077,1804.9,1804.7,2.41167855]
[1680519510117,0.67833077,1804.9,1804.7,0.68702108]
[1680519510318,1.67833077,1804.9,1804.8,0.68702108]
[1680519510519,0.68806267,1804.8,1804.6,5.47752072]
[1680519510830,0.67833077,1804.9,1804.7,13.98086187]
[1680519511129,0.67833077,1804.9,1804.8,2.13825693]
[1680519511425,0.67833077,1804.9,1804.8,1.45123542]
[1680519511928,0.67833077,1804.9,1804.8,0.68702151]
[1680519512117,0.67833077,1804.9,1804.8,1.45119244]
[1680519512515,0.828,1804.8,1804.7,1.45119244]
[1680519512724,4.8668,1804.8,1804.7,1.45119244]
[1680519514025,4.8668,1804.8,1804.7,2.1382503]
[1680519514218,4.8668,1804.8,1804.7,1.45119244]
[1680519517630,4.8668,1804.8,1804.7,2.1382503]
[1680519517825,4.8668,1804.8,1804.7,1.45119244]
[1680519519932,1.659,1804.8,1804.7,1.45119244]
[1680519521434,1.659,1804.8,1804.7,2.1382503]
[1680519521938,1.659,1804.8,1804.7,1.45119244]
[1680519525433,2.34175993,1804.8,1804.7,1.45119244]
[1680519526131,5.54955993,1804.8,1804.7,1.45119244]
[1680519529443,1.51075993,1804.8,1804.7,1.45119244]
[1680519529733,3.2078,1805.2,1804.8,1.0]
[1680519529938,2.47537371,1805.3,1805.1,0.87011997]
[1680519530236,3.05219007,1805.3,1805.2,0.58007111]
[1680519530440,3.05219007,1805.3,1805.1,1.45019108]
[1680519530441,1.40681636,1805.3,1805.1,1.45019108]
[1680519530740,3.2078,1805.2,1805.1,1.45019108]
[1680519530932,3.2078,1805.2,1805.1,0.87011997]
[1680519532046,4.0388,1805.2,1805.1,0.87011997]
[1680519532242,0.831,1805.2,1805.1,0.87011997]
[1680519532447,0.831,1805.2,1805.0,1.16015996]
[1680519532747,0.831,1805.2,1805.1,2.16015996]
[1680519533547,0.831,1805.2,1805.1,1.16015996]
[1680519534947,4.0388,1805.2,1805.0,1.16015996]
[1680519535146,1.662,1805.1,1805.0,1.84714964]
[1680519535336,2.662,1805.1,1805.0,1.84714964]